[Event "IMSA Blitz Women 2019"]
[Site "Hengshui"]
[Date "2019.05.18"]
[Round "8.1"]
[White "Abdumalik, Zhansaya"]
[Black "Tan, Zhongyi"]
[Result "0-1"]
[ECO "C65"]
[WhiteElo "2464"]
[BlackElo "2513"]
[Annotator "RC"]
[PlyCount "164"]
[EventDate "2019.05.17"]
[EventType "blitz"]
[EventCountry "CHN"]
[SourceTitle "playchess.com"]
[Source "ChessBase"]
[SourceQuality "1"]
[TimeControl "180+2"]

1. e4 {[%emt 0:00:00]} e5 {[%emt 0:00:00]} 2. Nf3 {[%emt 0:00:00]} Nc6 {[%emt 0:00:00]} 3. Bb5 {[%emt 0:00:00]} Nf6 {[%emt 0:00:00]} 4. d3 {[%emt 0:00:02]} Bc5 {[%emt 0:00:01]} 5. c3 {[%emt 0:00:02]} O-O {[%emt 0:00:02]} 6. O-O {[%emt 0:00:01]} d6 {[%emt 0:00:01]} 7. Nbd2 {[%emt 0:00:07]} a6 {[%emt 0:00:01]} 8. Ba4 {[%emt 0:00:01]} Ba7 {[%emt 0:00:01]} 9. h3 {[%emt 0:00:03]} Ne7 {[%emt 0:00:00]} 10. Re1 {[%emt 0:00:11]} Ng6 {[%emt 0:00:01]} 11. Bc2 {[%emt 0:00:08]} d5 {[%emt 0:00:06]} 12. Nf1 {[%emt 0:00:01]} Re8 {[%emt 0:00:03]} 13. Ng3 {[%emt 0:00:02]} h6 {[%emt 0:00:07]} 14. a4 {[%emt 0:00:03]} a5 {[%emt 0:00:07]} 15. exd5 {[%emt 0:00:07]} Nxd5 {[%emt 0:00:16]} 16. d4 {[%emt 0:00:07]} exd4 {[%emt 0:00:02]} 17. Rxe8+ {[%emt 0:00:01]} Qxe8 {[%emt 0:00:02]} 18. Nxd4 {[%emt 0:00:04]} c6 {[%emt 0:00:16]} 19. Ndf5 {[%emt 0:00:19]} Qe5 {[%emt 0:00:09]} 20. Qe2 {[%emt 0:00:34]} Be6 {[%emt 0:00:29]} 21. Qxe5 {[%emt 0:00:04]} Nxe5 {[%emt 0:00:01]} 22. Nd4 {[%emt 0:00:05]} Bxd4 {[%emt 0:00:08]} 23. cxd4 {[%emt 0:00:01]} Nc4 {[%emt 0:00:02]} 24. b3 {[%emt 0:00:11]} Nb4 {[%emt 0:00:08]} 25. Bd1 {[%emt 0:00:01]} Nd6 {[%emt 0:00:08]} 26. Bf4 {[%emt 0:00:03]} Rd8 {[%emt 0:00:02]} 27. Ne2 {[%emt 0:00:07]} g5 {[%emt 0:00:08]} 28. Be5 {[%emt 0:00:04]} Nd3 {[%emt 0:00:04]} 29. Bh2 {[%emt 0:00:17]} Rd7 {[%emt 0:00:13]} 30. f4 {[%emt 0:00:12]} f6 {[%emt 0:00:03]} 31. fxg5 {[%emt 0:00:02]} hxg5 {[%emt 0:00:01]} 32. Ng3 {[%emt 0:00:10]} Nb4 {[%emt 0:00:17]} 33. Rb1 {[%emt 0:00:07]} Nf7 {[%emt 0:00:16]} 34. Ne4 {[%emt 0:00:04]} Kg7 {[%emt 0:00:02]} 35. Nc5 {[%emt 0:00:01]} Re7 {[%emt 0:00:01]} 36. Bf3 {[%emt 0:00:05]} Bd5 {[%emt 0:00:03]} 37. Bg4 {[%emt 0:00:10]} Kg6 {[%emt 0:00:09]} 38. Rf1 {[%emt 0:00:04]} Nh6 {[%emt 0:00:08]} 39. Bd6 {[%emt 0:00:05]} Re3 {[%emt 0:00:05]} 40. Bd1 {[%emt 0:00:09]} Nf5 {[%emt 0:00:11]} 41. Nxb7 {[%emt 0:00:10]} Nxd4 {[%emt 0:00:02]} 42. Bc5 {[%emt 0:00:03]} Rg3 {[%emt 0:00:11]} 43. Rf2 {[%emt 0:00:05]} Ne6 {[%emt 0:00:08]} 44. Bd6 {[%emt 0:00:02]} Rd3 {[%emt 0:00:05]} 45. Be2 {[%emt 0:00:01]} Rd4 {[%emt 0:00:03]} 46. Nxa5 {[%emt 0:00:01]} Nd3 {[%emt 0:00:03]} 47. Rf1 {[%emt 0:00:05]} Ndf4 {[%emt 0:00:02]} 48. Bf3 {[%emt 0:00:01]} Bxf3 {[%emt 0:00:01]} 49. Bxf4 {[%emt 0:00:02]} Be2 {[%emt 0:00:03]} 50. Be3 {[%emt 0:00:01]} Re4 {[%emt 0:00:01]} 51. Rc1 {[%emt 0:00:03]} Rxe3 {[%emt 0:00:02]} 52. Kf2 {[%emt 0:00:01]} Re4 {[%emt 0:00:01]} 53. Re1 {[%emt 0:00:02]} Nf4 {[%emt 0:00:02]} 54. Rb1 {[%emt 0:00:06]} Nd3+ {[%emt 0:00:01]} 55. Kg1 {[%emt 0:00:01]} Re6 {[%emt 0:00:02]} 56. b4 {[%emt 0:00:02]} Nf4 {[%emt 0:00:02]} 57. b5 {[%emt 0:00:02]} cxb5 {[%emt 0:00:01]} 58. axb5 {[%emt 0:00:01]} Rb6 {[%emt 0:00:01]} 59. Nc6 {[%emt 0:00:02]} Rxb5 {[%emt 0:00:02]} 60. Rxb5 {[%emt 0:00:02]} Bxb5 {[%emt 0:00:01]} 61. Nd4 {[%emt 0:00:01]} Bc4 {[%emt 0:00:02]} 62. Kh2 {[%emt 0:00:01]} Bd5 {[%emt 0:00:01]} 63. g3 {[%emt 0:00:01]} Ne6 {[%emt 0:00:02]} 64. Ne2 {[%emt 0:00:02]} f5 {[%emt 0:00:01]} 65. h4 {[%emt 0:00:01]} gxh4 66. gxh4 {[%emt 0:00:01]} Kh5 {[%emt 0:00:05]} 67. Kh3 {[%emt 0:00:02]} Bf3 {[%emt 0:00:02]} 68. Ng3+ {[%emt 0:00:00]} Kg6 {[%emt 0:00:01]} 69. Kh2 {[%emt 0:00:02]} Bg4 {[%emt 0:00:02]} 70. Kg2 {[%emt 0:00:02]} f4 {[%emt 0:00:01]} 71. Ne4 {[%emt 0:00:01]} Kh5 {[%emt 0:00:02]} 72. Nf6+ {[%emt 0:00:02]} Kxh4 {[%emt 0:00:02]} 73. Kf2 {[%emt 0:00:04]} Nd4 {[%emt 0:00:02]} 74. Nd5 {[%emt 0:00:01]} Kg5 {[%emt 0:00:01]} 75. Nc3 {[%emt 0:00:02]} Kf5 {[%emt 0:00:02]} 76. Nd5 {[%emt 0:00:01]} Ke5 {[%emt 0:00:00]} 77. Ne7 {[%emt 0:00:02]} Bh5 {[%emt 0:00:01]} 78. Nc8 {[%emt 0:00:01]} Nf5 {[%emt 0:00:01]} 79. Nb6 {[%emt 0:00:01]} Nd6 {[%emt 0:00:01]} 80. Nd7+ {[%emt 0:00:02]} Kf5 {[%emt 0:00:01]} 81. Nc5 {[%emt 0:00:01]} Ne4+ {[%emt 0:00:01]} 82. Nxe4 {[%emt 0:00:01]} Kxe4 {[%emt 0:00:01]} 0-1

[Event "IMSA Blitz Women 2019"]
[Site "Hengshui"]
[Date "2019.05.18"]
[Round "8.2"]
[White "Tan, Zhongyi"]
[Black "Abdumalik, Zhansaya"]
[Result "1/2-1/2"]
[ECO "A28"]
[WhiteElo "2513"]
[BlackElo "2464"]
[Annotator "RC"]
[PlyCount "175"]
[EventDate "2019.05.17"]
[EventType "blitz"]
[EventCountry "CHN"]
[SourceTitle "playchess.com"]
[Source "ChessBase"]
[SourceQuality "1"]
[TimeControl "180+2"]

1. c4 {[%emt 0:00:00]} e5 {[%emt 0:00:00]} 2. Nc3 {[%emt 0:00:00]} Nf6 {[%emt 0:00:00]} 3. Nf3 {[%emt 0:00:02]} Nc6 {[%emt 0:00:02]} 4. e4 {[%emt 0:00:01]} d6 {[%emt 0:00:06]} 5. d3 {[%emt 0:00:02]} g6 {[%emt 0:00:03]} 6. g3 {[%emt 0:00:08]} Bg7 {[%emt 0:00:01]} 7. Bg2 {[%emt 0:00:01]} O-O {[%emt 0:00:10]} 8. O-O {[%emt 0:00:02]} h6 {[%emt 0:00:00]} 9. Rb1 {[%emt 0:00:04]} a5 {[%emt 0:00:01]} 10. Nd5 {[%emt 0:00:06]} Nh7 {[%emt 0:00:07]} 11. a3 {[%emt 0:00:06]} Be6 {[%emt 0:00:17]} 12. b4 {[%emt 0:00:04]} axb4 {[%emt 0:00:03]} 13. axb4 {[%emt 0:00:01]} Qd7 {[%emt 0:00:07]} 14. b5 {[%emt 0:00:02]} Ne7 {[%emt 0:00:06]} 15. Bb2 {[%emt 0:00:11]} f5 {[%emt 0:00:16]} 16. Nh4 {[%emt 0:00:22]} Bxd5 {[%emt 0:00:17]} 17. exd5 {[%emt 0:00:09]} g5 {[%emt 0:00:07]} 18. Nf3 {[%emt 0:00:01]} Nf6 {[%emt 0:00:01]} 19. Ra1 {[%emt 0:00:04]} Ng6 {[%emt 0:00:06]} 20. Qc2 {[%emt 0:00:06]} g4 {[%emt 0:00:03]} 21. Nd2 {[%emt 0:00:02]} h5 {[%emt 0:00:01]} 22. Rxa8 Rxa8 23. Ra1 {[%emt 0:00:03]} Rf8 {[%emt 0:00:14]} 24. Ra7 {[%emt 0:00:02]} b6 {[%emt 0:00:04]} 25. Nf1 {[%emt 0:00:30]} h4 {[%emt 0:00:04]} 26. Nd2 {[%emt 0:00:17]} Nh7 {[%emt 0:00:06]} 27. Bc1 {[%emt 0:00:10]} Bf6 {[%emt 0:00:05]} 28. Nb1 {[%emt 0:00:09]} Ng5 {[%emt 0:00:05]} 29. Bxg5 {[%emt 0:00:06]} Bxg5 {[%emt 0:00:01]} 30. Nc3 {[%emt 0:00:01]} Qg7 {[%emt 0:00:27]} 31. c5 {[%emt 0:00:07]} Rf7 {[%emt 0:00:11]} 32. cxd6 {[%emt 0:00:06]} cxd6 {[%emt 0:00:00]} 33. Rxf7 Qxf7 34. Na4 {[%emt 0:00:02]} h3 {[%emt 0:00:28]} 35. Bf1 {[%emt 0:00:30]} Qxd5 {[%emt 0:00:08]} 36. Qc8+ {[%emt 0:00:04]} Kg7 {[%emt 0:00:09]} 37. Qd7+ {[%emt 0:00:05]} Kh6 {[%emt 0:00:06]} 38. Nxb6 {[%emt 0:00:05]} Qd4 {[%emt 0:00:01]} 39. Qc6 {[%emt 0:00:06]} Bd2 {[%emt 0:00:03]} 40. Nd7 {[%emt 0:00:09]} Be1 {[%emt 0:00:02]} 41. Qc2 {[%emt 0:00:01]} Qa7 {[%emt 0:00:03]} 42. Nf6 {[%emt 0:00:03]} Qb6 {[%emt 0:00:02]} 43. Qc1+ {[%emt 0:00:04]} Kg7 {[%emt 0:00:02]} 44. Nh5+ {[%emt 0:00:00]} Kf7 {[%emt 0:00:02]} 45. Qxe1 Qxb5 46. Qe3 {[%emt 0:00:03]} f4 {[%emt 0:00:06]} 47. Qe4 {[%emt 0:00:01]} Qd7 {[%emt 0:00:02]} 48. gxf4 {[%emt 0:00:04]} d5 {[%emt 0:00:00]} 49. Qe3 {[%emt 0:00:01]} Qf5 {[%emt 0:00:02]} 50. Ng3 {[%emt 0:00:03]} Qxf4 {[%emt 0:00:01]} 51. Qxf4+ {[%emt 0:00:02]} Nxf4 {[%emt 0:00:02]} 52. Be2 {[%emt 0:00:02]} Kf6 {[%emt 0:00:07]} 53. Bxg4 {[%emt 0:00:02]} Nxd3 {[%emt 0:00:01]} 54. Bxh3 {[%emt 0:00:01]} Nf4 {[%emt 0:00:01]} 55. Bc8 {[%emt 0:00:02]} e4 {[%emt 0:00:01]} 56. Kf1 {[%emt 0:00:02]} Ke5 {[%emt 0:00:02]} 57. Bb7 {[%emt 0:00:02]} Nh3 {[%emt 0:00:05]} 58. Bc8 {[%emt 0:00:02]} Nf4 {[%emt 0:00:01]} 59. h4 {[%emt 0:00:01]} d4 {[%emt 0:00:01]} 60. Bb7 {[%emt 0:00:02]} e3 {[%emt 0:00:03]} 61. fxe3 {[%emt 0:00:02]} dxe3 {[%emt 0:00:01]} 62. Bf3 {[%emt 0:00:02]} Kf6 {[%emt 0:00:02]} 63. Ne4+ {[%emt 0:00:03]} Kf5 {[%emt 0:00:02]} 64. Ng3+ {[%emt 0:00:01]} Kg6 {[%emt 0:00:01]} 65. Ke1 {[%emt 0:00:02]} Kf6 {[%emt 0:00:05]} 66. Kd1 {[%emt 0:00:01]} Ng6 {[%emt 0:00:03]} 67. h5 {[%emt 0:00:02]} Ne5 {[%emt 0:00:01]} 68. Ke2 {[%emt 0:00:02]} Nc4 {[%emt 0:00:02]} 69. Ne4+ {[%emt 0:00:03]} Kf5 {[%emt 0:00:03]} 70. Nc3 {[%emt 0:00:03]} Kg5 {[%emt 0:00:01]} 71. Nd5 {[%emt 0:00:01]} Ne5 {[%emt 0:00:02]} 72. Be4 {[%emt 0:00:10]} Kxh5 {[%emt 0:00:01]} 73. Kxe3 {[%emt 0:00:01]} Kg5 {[%emt 0:00:01]} 74. Kd4 {[%emt 0:00:01]} Ng6 {[%emt 0:00:03]} 75. Ne3 {[%emt 0:00:01]} Nf4 {[%emt 0:00:01]} 76. Ke5 {[%emt 0:00:02]} Ng6+ {[%emt 0:00:01]} 77. Ke6 {[%emt 0:00:01]} Nf4+ {[%emt 0:00:01]} 78. Kf7 {[%emt 0:00:00]} Nh5 {[%emt 0:00:03]} 79. Nd5 {[%emt 0:00:02]} Nf4 {[%emt 0:00:01]} 80. Nf6 {[%emt 0:00:02]} Nh5 {[%emt 0:00:02]} 81. Nh7+ {[%emt 0:00:02]} Kf4 {[%emt 0:00:00]} 82. Bb1 {[%emt 0:00:01]} Ng3 {[%emt 0:00:02]} 83. Ke6 {[%emt 0:00:01]} Ne4 {[%emt 0:00:01]} 84. Ke7 {[%emt 0:00:04]} Ng5 {[%emt 0:00:02]} 85. Nf6 {[%emt 0:00:02]} Nf3 {[%emt 0:00:01]} 86. Ke6 {[%emt 0:00:01]} Nd4+ {[%emt 0:00:03]} 87. Kd5 {[%emt 0:00:01]} Nf3 {[%emt 0:00:01]} 88. Bc2 {[%emt 0:00:03]} 1/2-1/2

[Event "IMSA Blitz Women 2019"]
[Site "Hengshui"]
[Date "2019.05.18"]
[Round "8.2"]
[White "Dzagnidze, Nana"]
[Black "Muzychuk, Mariya"]
[Result "0-1"]
[ECO "A37"]
[WhiteElo "2510"]
[BlackElo "2563"]
[Annotator "RC"]
[PlyCount "82"]
[EventDate "2019.05.17"]
[EventType "blitz"]
[EventCountry "CHN"]
[SourceTitle "playchess.com"]
[Source "ChessBase"]
[SourceQuality "1"]
[TimeControl "180+2"]

1. c4 {[%emt 0:00:00]} c5 {[%emt 0:00:00]} 2. Nf3 Nc6 3. g3 {[%emt 0:00:06]} g6 {[%emt 0:00:00]} 4. Bg2 {[%emt 0:00:02]} Bg7 {[%emt 0:00:01]} 5. Nc3 {[%emt 0:00:01]} e6 6. O-O {[%emt 0:00:03]} Nge7 {[%emt 0:00:02]} 7. d3 {[%emt 0:00:10]} O-O 8. Bg5 d5 {[%emt 0:00:03]} 9. cxd5 {[%emt 0:00:08]} exd5 {[%emt 0:00:01]} 10. Qc1 {[%emt 0:00:02]} b6 {[%emt 0:00:09]} 11. Bh6 {[%emt 0:00:11]} Bb7 {[%emt 0:00:03]} 12. Bxg7 {[%emt 0:00:03]} Kxg7 {[%emt 0:00:01]} 13. a3 {[%emt 0:00:05]} d4 {[%emt 0:00:10]} 14. Ne4 {[%emt 0:00:16]} Nd5 {[%emt 0:00:01]} 15. b4 {[%emt 0:00:17]} cxb4 {[%emt 0:00:10]} 16. axb4 {[%emt 0:00:02]} Ndxb4 {[%emt 0:00:03]} 17. Qb2 {[%emt 0:00:01]} a5 {[%emt 0:00:07]} 18. Ned2 {[%emt 0:00:13]} Qf6 {[%emt 0:00:06]} 19. Nc4 {[%emt 0:00:25]} Ba6 {[%emt 0:00:52]} 20. Nxb6 Ra7 21. Na4 {[%emt 0:00:40]} Re8 {[%emt 0:00:16]} 22. Rfc1 {[%emt 0:00:08]} Rae7 {[%emt 0:00:03]} 23. Bf1 {[%emt 0:00:04]} Bxd3 {[%emt 0:00:05]} 24. exd3 {[%emt 0:00:09]} Qxf3 {[%emt 0:00:01]} 25. Bg2 {[%emt 0:00:23]} Qf6 {[%emt 0:00:02]} 26. Qd2 {[%emt 0:00:14]} Re2 {[%emt 0:00:23]} 27. Qf4 {[%emt 0:00:01]} Ne5 {[%emt 0:00:06]} 28. Bf1 {[%emt 0:00:09]} Nexd3 {[%emt 0:00:18]} 29. Qxf6+ {[%emt 0:00:01]} Kxf6 {[%emt 0:00:01]} 30. Bxe2 {[%emt 0:00:02]} Nxc1 {[%emt 0:00:01]} 31. Bc4 {[%emt 0:00:01]} Ne2+ {[%emt 0:00:05]} 32. Kf1 {[%emt 0:00:01]} Nc3 {[%emt 0:00:02]} 33. Nc5 {[%emt 0:00:03]} a4 {[%emt 0:00:05]} 34. Nd3 {[%emt 0:00:03]} Nxd3 {[%emt 0:00:02]} 35. Bxd3 {[%emt 0:00:01]} Ra8 {[%emt 0:00:19]} 36. Ke1 {[%emt 0:00:02]} a3 {[%emt 0:00:02]} 37. Kd2 {[%emt 0:00:00]} Ke5 {[%emt 0:00:03]} 38. Kc2 {[%emt 0:00:02]} a2 {[%emt 0:00:03]} 39. Kb2 {[%emt 0:00:00]} Rb8+ {[%emt 0:00:01]} 40. Ka3 {[%emt 0:00:03]} Kd5 {[%emt 0:00:03]} 41. Bc2 {[%emt 0:00:02]} Ke5 0-1

[Event "IMSA Blitz Women 2019"]
[Site "Hengshui"]
[Date "2019.05.18"]
[Round "8.2"]
[White "Paehtz, Elisabeth"]
[Black "Stefanova, Antoaneta"]
[Result "1-0"]
[ECO "A48"]
[WhiteElo "2470"]
[BlackElo "2470"]
[Annotator "RC"]
[PlyCount "77"]
[EventDate "2019.05.17"]
[EventType "blitz"]
[EventCountry "CHN"]
[SourceTitle "playchess.com"]
[Source "ChessBase"]
[SourceQuality "1"]
[TimeControl "180+2"]

1. d4 {[%emt 0:00:00]} Nf6 {[%emt 0:00:00]} 2. Nf3 {[%emt 0:00:00]} g6 {[%emt 0:00:00]} 3. Bg5 {[%emt 0:00:02]} Bg7 {[%emt 0:00:02]} 4. Nbd2 {[%emt 0:00:01]} O-O {[%emt 0:00:03]} 5. c3 {[%emt 0:00:02]} d6 {[%emt 0:00:05]} 6. e4 {[%emt 0:00:04]} c5 {[%emt 0:00:03]} 7. dxc5 {[%emt 0:00:03]} dxc5 {[%emt 0:00:02]} 8. Bc4 {[%emt 0:00:05]} Qc7 {[%emt 0:00:05]} 9. Qe2 {[%emt 0:00:04]} Nh5 {[%emt 0:00:11]} 10. g3 {[%emt 0:00:07]} Bh3 {[%emt 0:00:18]} 11. O-O-O {[%emt 0:00:07]} Nc6 {[%emt 0:00:07]} 12. Be3 {[%emt 0:00:08]} Na5 {[%emt 0:00:16]} 13. Bd3 {[%emt 0:00:05]} Be6 {[%emt 0:00:28]} 14. Kb1 {[%emt 0:00:12]} c4 {[%emt 0:00:09]} 15. Bc2 {[%emt 0:00:02]} b5 {[%emt 0:00:02]} 16. Nd4 {[%emt 0:00:03]} Bd7 {[%emt 0:00:01]} 17. f4 {[%emt 0:00:12]} Nf6 {[%emt 0:00:25]} 18. e5 {[%emt 0:00:12]} Nd5 {[%emt 0:00:04]} 19. Be4 {[%emt 0:00:02]} Nxe3 {[%emt 0:00:09]} 20. Qxe3 {[%emt 0:00:08]} Rab8 {[%emt 0:00:00]} 21. a3 {[%emt 0:00:07]} Nb7 {[%emt 0:00:01]} 22. h4 {[%emt 0:00:09]} Nc5 {[%emt 0:00:03]} 23. h5 {[%emt 0:00:07]} Nxe4 {[%emt 0:00:02]} 24. Nxe4 {[%emt 0:00:02]} a5 {[%emt 0:00:05]} 25. hxg6 {[%emt 0:00:12]} hxg6 {[%emt 0:00:02]} 26. Qe2 {[%emt 0:00:11]} b4 {[%emt 0:00:06]} 27. Qh2 {[%emt 0:00:04]} Rfd8 {[%emt 0:00:11]} 28. Qh7+ Kf8 29. Ng5 {[%emt 0:00:22]} bxa3 {[%emt 0:00:45]} 30. Qh8+ {[%emt 0:00:25]} Bxh8 {[%emt 0:00:01]} 31. Rxh8+ {[%emt 0:00:01]} Kg7 {[%emt 0:00:00]} 32. Rh7+ {[%emt 0:00:01]} Kg8 {[%emt 0:00:06]} 33. Rdh1 {[%emt 0:00:01]} Rxb2+ 34. Ka1 Rb1+ {[%emt 0:00:10]} 35. Rxb1 {[%emt 0:00:03]} f6 {[%emt 0:00:04]} 36. Rbh1 {[%emt 0:00:13]} Bh3 {[%emt 0:00:02]} 37. R7xh3 {[%emt 0:00:11]} fxg5 {[%emt 0:00:02]} 38. Rh8+ {[%emt 0:00:02]} Kf7 {[%emt 0:00:02]} 39. R1h7# {[%emt 0:00:01]} 1-0

[Event "IMSA Blitz Women 2019"]
[Site "Hengshui"]
[Date "2019.05.18"]
[Round "9.1"]
[White "Gunina, Valentina"]
[Black "Lei, Tingjie"]
[Result "0-1"]
[ECO "C42"]
[WhiteElo "2506"]
[BlackElo "2507"]
[Annotator "RC"]
[PlyCount "66"]
[EventDate "2019.05.17"]
[EventType "blitz"]
[EventCountry "CHN"]
[SourceTitle "playchess.com"]
[Source "ChessBase"]
[SourceQuality "1"]
[TimeControl "180+2"]

1. e4 {[%emt 0:00:00]} e5 {[%emt 0:00:00]} 2. Nf3 {[%emt 0:00:01]} Nf6 {[%emt 0:00:00]} 3. Nxe5 {[%emt 0:00:02]} d6 {[%emt 0:00:01]} 4. Nf3 {[%emt 0:00:01]} Nxe4 {[%emt 0:00:02]} 5. Bd3 {[%emt 0:00:04]} Nf6 {[%emt 0:00:01]} 6. O-O {[%emt 0:00:02]} Be7 {[%emt 0:00:01]} 7. c3 {[%emt 0:00:01]} O-O {[%emt 0:00:03]} 8. Bc2 {[%emt 0:00:01]} b6 {[%emt 0:00:08]} 9. d4 {[%emt 0:00:02]} Bb7 {[%emt 0:00:01]} 10. Re1 {[%emt 0:00:01]} Nbd7 {[%emt 0:00:01]} 11. Bg5 {[%emt 0:00:06]} Re8 {[%emt 0:00:02]} 12. Nbd2 {[%emt 0:00:02]} Nd5 {[%emt 0:00:11]} 13. Bxe7 {[%emt 0:00:02]} Rxe7 {[%emt 0:00:00]} 14. Ne4 {[%emt 0:00:05]} Nf4 {[%emt 0:00:16]} 15. Qd2 {[%emt 0:00:02]} Ng6 {[%emt 0:00:02]} 16. h4 {[%emt 0:00:04]} h6 {[%emt 0:00:01]} 17. h5 {[%emt 0:00:02]} Ngf8 {[%emt 0:00:01]} 18. Nh4 {[%emt 0:00:16]} Rxe4 {[%emt 0:00:41]} 19. Bxe4 {[%emt 0:00:04]} d5 {[%emt 0:00:01]} 20. Bxd5 {[%emt 0:00:22]} Bxd5 {[%emt 0:00:03]} 21. Nf5 {[%emt 0:00:01]} Ne6 {[%emt 0:00:02]} 22. Rac1 {[%emt 0:00:52]} Qf6 {[%emt 0:00:05]} 23. Ne3 {[%emt 0:00:07]} Qg5 {[%emt 0:00:07]} 24. Qe2 {[%emt 0:00:47]} Nf4 {[%emt 0:00:13]} 25. Qf1 {[%emt 0:00:18]} Be4 {[%emt 0:00:01]} 26. Rcd1 {[%emt 0:00:14]} Nf6 {[%emt 0:00:01]} 27. f3 {[%emt 0:00:04]} Bb7 {[%emt 0:00:01]} 28. Rd2 {[%emt 0:00:05]} N6xh5 {[%emt 0:00:02]} 29. Kh2 {[%emt 0:00:04]} Qh4+ {[%emt 0:00:08]} 30. Kg1 {[%emt 0:00:01]} Ng3 {[%emt 0:00:01]} 31. Qb5 {[%emt 0:00:01]} Ne4 {[%emt 0:00:38]} 32. Rdd1 {[%emt 0:00:05]} Nh3+ {[%emt 0:00:04]} 33. Kh2 {[%emt 0:00:02]} Nhf2+ {[%emt 0:00:02]} 0-1

[Event "IMSA Blitz Women 2019"]
[Site "Hengshui"]
[Date "2019.05.18"]
[Round "9.1"]
[White "Paehtz, Elisabeth"]
[Black "Kosteniuk, Alexandra"]
[Result "0-1"]
[ECO "D02"]
[WhiteElo "2470"]
[BlackElo "2546"]
[Annotator "ChessBase"]
[PlyCount "21"]
[EventDate "2019.05.17"]
[EventType "blitz"]
[EventCountry "CHN"]
[SourceTitle "playchess.com"]
[Source "ChessBase"]
[SourceQuality "1"]
[TimeControl "180+2"]

1. d4 {[%emt 0:00:00]} Nf6 {[%emt 0:00:00]} 2. Nf3 {[%emt 0:00:00]} d5 {[%emt 0:00:00]} 3. Bf4 {[%emt 0:00:01]} c5 {[%emt 0:00:01]} 4. e3 {[%emt 0:00:01]} Nc6 {[%emt 0:00:04]} 5. Nbd2 {[%emt 0:00:01]} Bg4 {[%emt 0:00:06]} 6. c3 {[%emt 0:00:03]} e6 {[%emt 0:00:02]} 7. Qa4 {[%emt 0:00:04]} Nd7 {[%emt 0:00:18]} 8. Bb5 {[%emt 0:00:04]} Qb6 {[%emt 0:00:04]} 9. O-O {[%emt 0:00:17]} a6 {[%emt 0:00:16]} 10. Bxc6 {[%emt 0:00:02]} Qxc6 {[%emt 0:00:02]} 11. h3 {[%emt 0:00:12]} 0-1

[Event "IMSA Blitz Women 2019"]
[Site "Hengshui"]
[Date "2019.05.18"]
[Round "9.2"]
[White "Dzagnidze, Nana"]
[Black "Bodnaruk, Anastasia"]
[Result "1-0"]
[ECO "E63"]
[WhiteElo "2510"]
[BlackElo "2431"]
[Annotator "RC"]
[PlyCount "71"]
[EventDate "2019.05.17"]
[EventType "blitz"]
[EventCountry "CHN"]
[SourceTitle "playchess.com"]
[Source "ChessBase"]
[SourceQuality "1"]
[TimeControl "180+2"]

1. d4 {[%emt 0:00:00]} Nf6 {[%emt 0:00:00]} 2. c4 {[%emt 0:00:01]} g6 {[%emt 0:00:00]} 3. Nf3 {[%emt 0:00:02]} Bg7 {[%emt 0:00:00]} 4. g3 {[%emt 0:00:02]} O-O {[%emt 0:00:02]} 5. Bg2 {[%emt 0:00:01]} d6 {[%emt 0:00:01]} 6. Nc3 {[%emt 0:00:02]} Nc6 {[%emt 0:00:02]} 7. O-O {[%emt 0:00:03]} a6 {[%emt 0:00:01]} 8. Bf4 {[%emt 0:00:12]} Rb8 {[%emt 0:00:03]} 9. Rc1 {[%emt 0:00:04]} Bd7 {[%emt 0:00:03]} 10. b3 {[%emt 0:00:05]} b5 {[%emt 0:00:09]} 11. Nd5 {[%emt 0:00:06]} Nxd5 {[%emt 0:00:35]} 12. cxd5 {[%emt 0:00:02]} Nb4 {[%emt 0:00:01]} 13. e4 {[%emt 0:00:07]} Nxa2 {[%emt 0:00:04]} 14. Ra1 {[%emt 0:00:04]} Nc3 {[%emt 0:00:13]} 15. Qc2 {[%emt 0:00:02]} b4 {[%emt 0:00:01]} 16. Rfe1 {[%emt 0:00:03]} Bb5 {[%emt 0:00:12]} 17. Bd2 {[%emt 0:00:10]} Ne2+ {[%emt 0:00:12]} 18. Kh1 {[%emt 0:00:10]} Nxd4 {[%emt 0:00:04]} 19. Nxd4 {[%emt 0:00:02]} Bxd4 {[%emt 0:00:00]} 20. Rac1 {[%emt 0:00:00]} Bxf2 {[%emt 0:00:17]} 21. Red1 {[%emt 0:00:08]} Bc5 {[%emt 0:00:26]} 22. Bh6 {[%emt 0:00:07]} Re8 {[%emt 0:00:03]} 23. Qb2 {[%emt 0:00:06]} f6 {[%emt 0:00:01]} 24. e5 {[%emt 0:00:06]} fxe5 {[%emt 0:00:22]} 25. Rxc5 {[%emt 0:00:02]} Qd7 {[%emt 0:00:11]} 26. Rc2 {[%emt 0:00:14]} Qf5 {[%emt 0:00:09]} 27. Rf2 {[%emt 0:00:29]} Qh5 {[%emt 0:00:12]} 28. Qd2 {[%emt 0:00:01]} Kh8 {[%emt 0:00:10]} 29. h4 {[%emt 0:00:17]} Rg8 {[%emt 0:00:05]} 30. Kh2 {[%emt 0:00:10]} g5 {[%emt 0:00:09]} 31. Bxg5 {[%emt 0:00:12]} Rxg5 {[%emt 0:00:01]} 32. Qxg5 {[%emt 0:00:02]} Qxd1 {[%emt 0:00:02]} 33. Rf7 {[%emt 0:00:11]} Rg8 {[%emt 0:00:03]} 34. Rxh7+ {[%emt 0:00:03]} Kxh7 {[%emt 0:00:03]} 35. Be4+ {[%emt 0:00:01]} Kh8 {[%emt 0:00:08]} 36. Qh6# {[%emt 0:00:01]} 1-0

[Event "IMSA Blitz Women 2019"]
[Site "Hengshui"]
[Date "2019.05.18"]
[Round "9.2"]
[White "Lei, Tingjie"]
[Black "Gunina, Valentina"]
[Result "1-0"]
[ECO "B12"]
[WhiteElo "2507"]
[BlackElo "2506"]
[Annotator "RC"]
[PlyCount "81"]
[EventDate "2019.05.17"]
[EventType "blitz"]
[EventCountry "CHN"]
[SourceTitle "playchess.com"]
[Source "ChessBase"]
[SourceQuality "1"]
[TimeControl "180+2"]

1. e4 {[%emt 0:00:00]} c6 {[%emt 0:00:00]} 2. d4 {[%emt 0:00:03]} d5 {[%emt 0:00:00]} 3. e5 {[%emt 0:00:03]} Bf5 {[%emt 0:00:01]} 4. Nf3 {[%emt 0:00:01]} e6 {[%emt 0:00:01]} 5. Be2 {[%emt 0:00:02]} Nd7 {[%emt 0:00:02]} 6. O-O {[%emt 0:00:01]} h6 {[%emt 0:00:01]} 7. Nbd2 {[%emt 0:00:03]} Ne7 {[%emt 0:00:01]} 8. Re1 {[%emt 0:00:03]} Qc7 {[%emt 0:00:07]} 9. c3 {[%emt 0:00:07]} g5 {[%emt 0:00:08]} 10. Nf1 {[%emt 0:00:02]} Bg7 {[%emt 0:00:03]} 11. Ng3 {[%emt 0:00:06]} Bg6 {[%emt 0:00:01]} 12. a4 {[%emt 0:00:09]} O-O {[%emt 0:00:12]} 13. Bd3 {[%emt 0:00:12]} c5 {[%emt 0:00:01]} 14. h4 {[%emt 0:00:03]} g4 {[%emt 0:00:11]} 15. Nh2 {[%emt 0:00:02]} h5 {[%emt 0:00:06]} 16. f3 {[%emt 0:00:02]} f5 {[%emt 0:00:10]} 17. fxg4 {[%emt 0:00:48]} hxg4 {[%emt 0:00:26]} 18. h5 {[%emt 0:00:09]} Bh7 {[%emt 0:00:01]} 19. h6 {[%emt 0:00:02]} Bh8 {[%emt 0:00:02]} 20. Nxg4 {[%emt 0:00:02]} cxd4 {[%emt 0:00:07]} 21. cxd4 {[%emt 0:00:04]} Ng6 {[%emt 0:00:09]} 22. Nf2 {[%emt 0:00:06]} Qb6 {[%emt 0:00:36]} 23. Be3 {[%emt 0:00:34]} Qd8 {[%emt 0:00:53]} 24. Qh5 {[%emt 0:00:09]} Qe8 {[%emt 0:00:03]} 25. Qg5 {[%emt 0:00:14]} Qe7 {[%emt 0:00:12]} 26. Nh5 {[%emt 0:00:03]} Qxg5 {[%emt 0:00:06]} 27. Bxg5 {[%emt 0:00:01]} Kf7 {[%emt 0:00:01]} 28. Bb5 {[%emt 0:00:07]} Nb6 {[%emt 0:00:02]} 29. a5 {[%emt 0:00:01]} Nc4 {[%emt 0:00:01]} 30. b3 {[%emt 0:00:01]} Rg8 {[%emt 0:00:02]} 31. bxc4 {[%emt 0:00:02]} Nxe5 {[%emt 0:00:02]} 32. dxe5 {[%emt 0:00:02]} Rxg5 {[%emt 0:00:01]} 33. Nf4 {[%emt 0:00:01]} d4 {[%emt 0:00:02]} 34. Red1 {[%emt 0:00:02]} Rd8 {[%emt 0:00:01]} 35. N2d3 {[%emt 0:00:01]} Rg4 {[%emt 0:00:08]} 36. c5 {[%emt 0:00:01]} Rh4 {[%emt 0:00:04]} 37. Bc4 {[%emt 0:00:01]} Rxh6 {[%emt 0:00:04]} 38. Rab1 {[%emt 0:00:01]} Rd7 {[%emt 0:00:01]} 39. a6 {[%emt 0:00:01]} bxa6 40. c6 {[%emt 0:00:01]} Rc7 {[%emt 0:00:02]} 41. Rb7 {[%emt 0:00:01]} 1-0